[Event "VII Totalizator Sportowy 2022"]
[Site "Bydgoszcz"]
[Date "2022.06.27"]
[Round "3.15"]
[White "Kucza, Karol"]
[Black "Rog, Bartlomiej"]
[Result "1-0"]
[ECO "E06"]
[WhiteElo "2305"]
[BlackElo "2055"]
[Annotator "TA"]
[PlyCount "97"]
[EventDate "2022.06.25"]
[EventType "swiss"]
[EventCountry "POL"]
[SourceTitle "playchess.com"]
[Source "ChessBase"]
[SourceQuality "1"]
[TimeControl "40/5400+30:1800+30"]

{[%evp 26,97,8,-5,2,9,13,3,14,17,20,16,17,12,14,15,10,16,29,23,38,26,46,22,27,24,67,65,101,99,108,104,120,117,122,123,114,115,120,119,154,146,150,140,154,154,159,168,303,303,296,289,420,352,747,747,747,747,739,739,732,732,725,725,725,720,699,682,709,697,710,669,521,463]} 1. d4 {[%emt 0:00:03]} Nf6 {[%emt 0:01:40]} 2. c4 {[%emt 0:00:05]} e6 {[%emt 0:00:12]} 3. g3 {[%emt 0:01:21]} d5 {[%emt 0:01:28]} 4. Bg2 {[%emt 0:00:14]} Be7 {[%emt 0:02:12]} 5. Nf3 {[%emt 0:00:11]} O-O {[%emt 0:00:11]} 6. O-O {[%emt 0:00:09]} dxc4 {[%emt 0:00:08]} 7. Qc2 {[%emt 0:01:12]} a6 {[%emt 0:00:13]} 8. Qxc4 {[%emt 0:02:44]} b5 {[%emt 0:01:18]} 9. Qc2 {[%emt 0:00:07]} Bb7 {[%emt 0:00:12]} 10. Bg5 {[%emt 0:00:11]} Nbd7 {[%emt 0:02:16]} 11. Bxf6 {[%emt 0:00:57]} Nxf6 {[%emt 0:01:11]} 12. Nbd2 {[%emt 0:00:04]} Rc8 {[%emt 0:08:40]} 13. Nb3 {[%emt 0:00:05]} Be4 {[%emt 0:05:26]} 14. Qc1 {[%emt 0:06:18]} Nd7 {[%emt 0:08:14] E05: Open Catalan: 5 Nf3 Be7.} 15. Rd1 {[%emt 0:07:19]} c5 {[%emt 0:04:07] [#]} (15... c6 {is interesting.} 16. Qf4 Bc2 17. Rd2 Bxb3 18. axb3 Qb6) 16. Nxc5 $146 {[%emt 0:05:15]} (16. dxc5 {feels hotter.} Qc7 17. Qe3 Bc2 18. Rdc1) ({Predecessor:} 16. dxc5 Qc7 17. Qd2 Nxc5 18. Nxc5 Bxc5 19. Rac1 Qb6 20. e3 Qb7 21. Ne1 Be7 22. Rxc8 Rxc8 23. Bxe4 Qxe4 24. Qd7 {1-0 (24) Lenaerts,L (1902)-Schroeder,J (2235) Albena 2011}) 16... Nxc5 {[%emt 0:06:32] The position is equal.} 17. dxc5 {[%emt 0:01:24]} Rxc5 {[%emt 0:06:16]} 18. Rxd8 {[%emt 0:10:24]} Rxc1+ {[%emt 0:00:18]} 19. Rxc1 {[%emt 0:00:06]} Rxd8 {[%emt 0:00:06]} 20. Ne5 {[%emt 0:00:06]} Bxg2 {[%emt 0:00:53]} 21. Kxg2 $11 {[%emt 0:00:07][%mdl 4096] Endgame KRB-KRN} Bf6 {[%emt 0:17:51]} 22. Nd3 {[%emt 0:00:09]} h6 {[%emt 0:03:22]} 23. b3 {[%emt 0:01:59]} Rd6 {[%emt 0:08:22]} 24. Rc7 {[%emt 0:00:07]} Kf8 {[%emt 0:03:34]} 25. Kf3 {[%emt 0:06:06]} Ke8 {[%emt 0:00:54]} 26. Ra7 {[%emt 0:03:31]} Bc3 {[%emt 0:04:36] [#] White now steadily converts the win.} 27. Nc5 $1 {[%emt 0:01:47]} a5 {[%emt 0:01:09] [#]} 28. Rb7 $1 {[%emt 0:04:57]} Bb4 {[%emt 0:10:45]} 29. Rxb5 {[%emt 0:02:00]} Rd2 {[%emt 0:00:29]} 30. Nd3 {[%emt 0:03:00] And now a4 would win.} Rxa2 {[%emt 0:00:07]} 31. Nxb4 {[%emt 0:00:11]} axb4 {[%emt 0:00:03]} 32. Rxb4 $16 {[%emt 0:00:08] KR-KR} Ke7 {[%emt 0:00:05]} 33. Rb7+ {[%emt 0:01:46]} Kf6 {[%emt 0:00:08]} 34. h4 {[%emt 0:02:28]} g6 {[%emt 0:02:17]} 35. b4 {[%emt 0:00:19]} Rb2 {[%emt 0:00:10]} 36. b5 {[%emt 0:00:08]} Ke5 {[%emt 0:01:56]} (36... e5 $142 37. Rb6+ Ke7) 37. Rxf7 $18 {[%emt 0:01:43]} Rxb5 {[%emt 0:00:07]} 38. g4 {[%emt 0:00:12]} Rb4 {[%emt 0:01:27]} (38... h5 $142 39. gxh5 gxh5) 39. Kg3 {[%emt 0:07:41]} h5 $2 {[%emt 0:00:25]} (39... Rb1 40. Rh7 Rg1+ 41. Kf3 h5) 40. gxh5 {[%emt 0:00:00] White is clearly winning.} gxh5 {[%emt 0:00:00]} 41. Rg7 {[%emt 0:00:35]} Rb1 {[%emt 0:02:02]} 42. Kf3 {[%emt 0:00:58]} Rh1 {[%emt 0:01:22]} 43. Rg5+ {[%emt 0:00:06]} Kf6 {[%emt 0:00:10]} 44. Rxh5 {[%emt 0:00:07]} Kg6 {[%emt 0:00:09]} 45. Rg5+ {[%emt 0:00:14]} Kf6 {[%emt 0:00:09]} 46. Rg4 {[%emt 0:00:11]} Kf5 {[%emt 0:00:23]} 47. Rf4+ {[%emt 0:00:08]} Kg6 {[%emt 0:00:53]} 48. Ke4 {[%emt 0:01:28]} Re1 {[%emt 0:01:29]} 49. e3 {[%emt 0:00:08] Weighted Error Value: White=0.02 (flawless) /Black=0.23 (precise)} 1-0

[Event "VII Totalizator Sportowy 2022"]
[Site "Bydgoszcz"]
[Date "2022.06.27"]
[Round "3.16"]
[White "Zalega, Maciej"]
[Black "Prokofiev, Valentyn"]
[Result "1/2-1/2"]
[ECO "B42"]
[WhiteElo "2051"]
[BlackElo "2362"]
[Annotator "TA"]
[PlyCount "39"]
[EventDate "2022.06.25"]
[EventType "swiss"]
[EventCountry "POL"]
[SourceTitle "playchess.com"]
[Source "ChessBase"]
[SourceQuality "1"]
[TimeControl "40/5400+30:1800+30"]

{[%evp 10,39,43,24,41,37,64,53,52,10,12,0,37,35,35,47,52,58,59,52,59,62,72,66,77,55,72,0,0,6,41,31]} 1. e4 {[%emt 0:00:28]} c5 {[%emt 0:00:02]} 2. Nf3 {[%emt 0:00:08]} e6 {[%emt 0:00:03]} 3. d4 {[%emt 0:00:08]} cxd4 {[%emt 0:00:03]} 4. Nxd4 {[%emt 0:00:07]} a6 {[%emt 0:00:04]} 5. Bd3 {[%emt 0:00:06]} Nf6 {[%emt 0:00:06]} 6. Qe2 {[%emt 0:01:13]} d6 {[%emt 0:00:16] B42: Sicilian: Kan Variation: 5 Bd3.} 7. c4 {[%emt 0:01:06]} g6 {[%emt 0:01:14]} 8. Nc3 {[%emt 0:09:39] White is more active.} Bg7 {[%emt 0:00:24]} 9. f4 {[%emt 0:09:52]} O-O {[%emt 0:01:23]} 10. O-O {[%emt 0:05:31]} Qb6 {[%emt 0:02:55]} (10... d5 $5 {[%cal Rd5e4]} 11. Nf3 dxe4 12. Nxe4 Nxe4 13. Bxe4 Nd7 $11) 11. Be3 {[%emt 0:03:08][%cal Od4e6] [#] Threatens to win with Nxe6!} Ng4 {[%emt 0:02:22]} 12. Qxg4 {[%emt 0:07:54]} Bxd4 {[%emt 0:00:24]} 13. Bf2 {[%emt 0:00:32]} Nc6 {[%emt 0:02:22]} 14. Qe2 {[%emt 0:05:02]} Bd7 {[%emt 0:05:50]} 15. Rad1 {[%emt 0:06:57] [#]} Bc5 $146 {[%emt 0:06:15]} ({Predecessor:} 15... Rfe8 16. Bxd4 Qxd4+ 17. Kh1 Qc5 18. e5 d5 19. cxd5 exd5 20. Nxd5 Qxd5 21. Bc4 Nd4 {1-0 (37) Hjelm,N (2325)-Eriksson,J (2225) Helsingborg 1991}) 16. Bb1 {[%emt 0:08:17]} Qc7 {[%emt 0:04:49]} 17. Qd2 {[%emt 0:08:01] [#] Black must now prevent Bxc5.} Rad8 {[%emt 0:01:13]} 18. Bxc5 {[%emt 0:16:48]} ({White should play} 18. a3 $16) 18... dxc5 $11 {[%emt 0:00:06]} 19. f5 {[%emt 0:00:54] f6 is the strong threat.} Qe5 {[%emt 0:04:12][%cal Re6f5]} 20. Qh6 {[%emt 0:06:23] Weighted Error Value: White=0.15 (very precise) /Black=0.10 (very precise)} 1/2-1/2

[Event "VII Totalizator Sportowy 2022"]
[Site "Bydgoszcz"]
[Date "2022.06.27"]
[Round "3.17"]
[White "Kujawski, Adam"]
[Black "Paprocki, Antoni"]
[Result "0-1"]
[ECO "C87"]
[WhiteElo "2246"]
[BlackElo "1851"]
[Annotator "RC"]
[PlyCount "128"]
[EventDate "2022.06.25"]
[EventType "swiss"]
[EventCountry "POL"]
[SourceTitle "playchess.com"]
[Source "ChessBase"]
[SourceQuality "1"]
[TimeControl "40/5400+30:1800+30"]

1. e4 {[%emt 0:00:08]} e5 {[%emt 0:00:15]} 2. Nf3 {[%emt 0:00:06]} Nc6 {[%emt 0:00:08]} 3. Bb5 {[%emt 0:00:06]} a6 {[%emt 0:00:07]} 4. Ba4 {[%emt 0:00:04]} Nf6 {[%emt 0:00:06]} 5. O-O {[%emt 0:00:22]} Be7 {[%emt 0:00:05]} 6. Re1 {[%emt 0:00:09]} d6 {[%emt 0:00:38]} 7. Bxc6+ {[%emt 0:17:15]} bxc6 {[%emt 0:00:04]} 8. d4 {[%emt 0:00:09]} exd4 {[%emt 0:00:05]} 9. Nxd4 {[%emt 0:00:11]} Bd7 {[%emt 0:00:05]} 10. Nc3 {[%emt 0:04:22]} O-O {[%emt 0:02:00]} 11. Qf3 {[%emt 0:10:53]} Re8 {[%emt 0:01:43]} 12. h3 {[%emt 0:09:07]} Rb8 {[%emt 0:06:20]} 13. b3 {[%emt 0:03:07]} h6 {[%emt 0:06:00]} 14. Bb2 {[%emt 0:04:46]} c5 {[%emt 0:10:00]} 15. Nf5 {[%emt 0:01:26]} Bf8 {[%emt 0:04:56]} 16. Qf4 {[%emt 0:20:57]} Bxf5 {[%emt 0:04:34]} 17. Qxf5 {[%emt 0:01:26]} g6 {[%emt 0:00:51]} 18. Qf3 {[%emt 0:05:21]} Bg7 {[%emt 0:00:39]} 19. Rab1 {[%emt 0:09:51]} Nd7 {[%emt 0:18:43]} 20. Nd5 {[%emt 0:00:33]} Ne5 {[%emt 0:01:14]} 21. Bxe5 {[%emt 0:01:53]} Bxe5 {[%emt 0:00:20]} 22. Qd3 {[%emt 0:02:06]} Qc8 {[%emt 0:11:59]} 23. c3 {[%emt 0:00:35]} c6 {[%emt 0:04:48]} 24. Ne3 {[%emt 0:00:11]} Qe6 {[%emt 0:01:23]} 25. Nc4 {[%emt 0:01:50]} Bf4 {[%emt 0:01:41]} 26. Qf3 {[%emt 0:02:11]} d5 {[%emt 0:01:19]} 27. Qxf4 {[%emt 0:00:55]} dxc4 {[%emt 0:00:07]} 28. bxc4 {[%emt 0:02:48]} Rxb1 {[%emt 0:00:39]} 29. Rxb1 {[%emt 0:00:02]} Qxc4 {[%emt 0:01:23]} 30. Rb7 {[%emt 0:01:18]} Qxa2 {[%emt 0:01:27]} 31. Ra7 {[%emt 0:01:09]} a5 {[%emt 0:03:54]} 32. e5 {[%emt 0:00:26]} h5 {[%emt 0:10:56]} 33. c4 {[%emt 0:00:43]} Qa1+ {[%emt 0:00:45]} 34. Kh2 {[%emt 0:00:01]} Qxe5 {[%emt 0:00:07]} 35. Qxe5 {[%emt 0:00:07]} Rxe5 {[%emt 0:00:04]} 36. Rxa5 {[%emt 0:00:09]} Kf8 {[%emt 0:00:12]} 37. Ra6 {[%emt 0:01:39]} Re4 {[%emt 0:00:23]} 38. Rxc6 {[%emt 0:00:03]} Rxc4 {[%emt 0:00:05]} 39. g3 {[%emt 0:01:00]} Ke7 {[%emt 0:04:21]} 40. h4 {[%emt 0:00:00]} Kd7 {[%emt 0:00:00]} 41. Rf6 {[%emt 0:01:49]} Rd4 {[%emt 0:03:28]} 42. Rxf7+ {[%emt 0:00:11]} Kc6 {[%emt 0:00:03]} 43. Kg2 {[%emt 0:04:11]} c4 {[%emt 0:01:54]} 44. Rf8 {[%emt 0:00:52]} Kb5 {[%emt 0:03:51]} 45. Rb8+ {[%emt 0:04:10]} Ka4 {[%emt 0:01:28]} 46. Kf3 {[%emt 0:15:35]} c3 {[%emt 0:00:51]} 47. Ke2 {[%emt 0:03:05]} c2 {[%emt 0:00:38]} 48. Ra8+ {[%emt 0:00:34]} Kb3 {[%emt 0:00:13]} 49. Rb8+ {[%emt 0:00:19]} Kc3 {[%emt 0:02:40]} 50. Rc8+ {[%emt 0:00:27]} Kb2 {[%emt 0:00:07]} 51. Rb8+ {[%emt 0:00:05]} Kc1 {[%emt 0:00:04]} 52. Rb6 {[%emt 0:03:52]} Rd2+ {[%emt 0:10:02]} 53. Ke1 {[%emt 0:00:08]} Rd5 {[%emt 0:02:11]} 54. f4 {[%emt 0:00:32]} Rd3 {[%emt 0:01:12]} 55. Rxg6 {[%emt 0:01:12]} Re3+ {[%emt 0:00:26]} 56. Kf2 {[%emt 0:00:15]} Kd2 {[%emt 0:00:09]} 57. Rc6 {[%emt 0:01:25]} Rc3 {[%emt 0:00:06]} 58. Rd6+ {[%emt 0:00:16]} Rd3 {[%emt 0:00:04]} 59. Rc6 {[%emt 0:00:26]} c1=Q {[%emt 0:00:11]} 60. Rxc1 {[%emt 0:00:05]} Kxc1 {[%emt 0:00:03]} 61. f5 {[%emt 0:00:22]} Kd2 {[%emt 0:00:51]} 62. f6 {[%emt 0:00:35]} Rd6 {[%emt 0:00:18]} 63. g4 {[%emt 0:00:25]} Rxf6+ {[%emt 0:00:05]} 64. Kg3 {[%emt 0:00:06]} Rg6 {[%emt 0:00:14]} 0-1

[Event "VII Totalizator Sportowy 2022"]
[Site "Bydgoszcz"]
[Date "2022.06.27"]
[Round "3.18"]
[White "Starosciak, Szymon"]
[Black "Ulasevich, Sergei"]
[Result "1/2-1/2"]
[ECO "B38"]
[WhiteElo "1901"]
[BlackElo "2217"]
[Annotator "RC"]
[PlyCount "203"]
[EventDate "2022.06.25"]
[EventType "swiss"]
[EventCountry "POL"]
[SourceTitle "playchess.com"]
[Source "ChessBase"]
[SourceQuality "1"]
[TimeControl "40/5400+30:1800+30"]

1. e4 {[%emt 0:00:03]} c5 {[%emt 0:00:23]} 2. Nf3 {[%emt 0:00:05]} Nc6 {[%emt 0:00:05]} 3. d4 {[%emt 0:00:06]} cxd4 {[%emt 0:00:07]} 4. Nxd4 {[%emt 0:00:04]} g6 {[%emt 0:00:04]} 5. c4 {[%emt 0:00:39]} Bg7 {[%emt 0:00:24]} 6. Be3 {[%emt 0:00:10]} Nf6 {[%emt 0:00:08]} 7. Nc3 {[%emt 0:00:03]} O-O {[%emt 0:00:11]} 8. Be2 {[%emt 0:00:33]} d6 {[%emt 0:00:05]} 9. O-O {[%emt 0:00:06]} Bd7 {[%emt 0:00:04]} 10. Qd2 {[%emt 0:00:15]} Nxd4 {[%emt 0:00:18]} 11. Bxd4 {[%emt 0:00:07]} Bc6 {[%emt 0:00:05]} 12. f3 {[%emt 0:00:10]} a5 {[%emt 0:00:05]} 13. b3 {[%emt 0:00:05]} Nd7 {[%emt 0:00:06]} 14. Be3 {[%emt 0:00:15]} Nc5 {[%emt 0:00:10]} 15. Rab1 {[%emt 0:02:15]} Be5 {[%emt 0:00:22]} 16. g3 {[%emt 0:06:48]} e6 {[%emt 0:01:45]} 17. Rbd1 {[%emt 0:02:22]} Qe7 {[%emt 0:00:54]} 18. Bg5 {[%emt 0:01:38]} f6 {[%emt 0:03:25]} 19. Be3 {[%emt 0:00:12]} g5 {[%emt 0:19:40]} 20. Nb5 {[%emt 0:08:39]} b6 {[%emt 0:01:47]} 21. Nd4 {[%emt 0:09:48]} Bb7 {[%emt 0:00:41]} 22. a3 {[%emt 0:19:52]} g4 {[%emt 0:07:06]} 23. Qc2 {[%emt 0:12:00]} Kh8 {[%emt 0:23:42]} 24. b4 {[%emt 0:05:01]} axb4 {[%emt 0:00:09]} 25. axb4 {[%emt 0:00:07]} gxf3 {[%emt 0:04:31]} 26. Bxf3 {[%emt 0:00:14]} Nd7 {[%emt 0:00:06]} 27. Nb5 {[%emt 0:02:32]} Bc6 {[%emt 0:06:53]} 28. Bd4 {[%emt 0:05:33]} Bxb5 {[%emt 0:04:16]} 29. cxb5 {[%emt 0:00:42]} Bxd4+ {[%emt 0:04:13]} 30. Rxd4 {[%emt 0:01:55]} Ne5 {[%emt 0:00:03]} 31. Qd2 {[%emt 0:00:45]} Ra3 {[%emt 0:05:20]} 32. Bg2 {[%emt 0:00:34]} Rfa8 {[%emt 0:01:24]} 33. Qh6 {[%emt 0:06:26]} Ra1 {[%emt 0:06:36]} 34. Rdd1 {[%emt 0:00:51]} Rxd1 {[%emt 0:00:16]} 35. Rxd1 {[%emt 0:00:03]} Rc8 {[%emt 0:02:28]} 36. h3 {[%emt 0:02:16]} Nf7 {[%emt 0:01:17]} 37. Qe3 {[%emt 0:00:24]} Qc7 {[%emt 0:00:15]} 38. Rf1 {[%emt 0:00:37]} Kg7 {[%emt 0:01:43]} 39. Qf4 {[%emt 0:01:35]} Qe7 {[%emt 0:00:17]} 40. Qf2 {[%emt 0:00:00]} Qd8 {[%emt 0:00:00]} 41. h4 {[%emt 0:07:52]} Rc4 {[%emt 0:02:25]} 42. Qf4 {[%emt 0:11:45]} Ne5 {[%emt 0:06:25]} 43. Bh3 {[%emt 0:03:41]} Qe7 {[%emt 0:00:06]} 44. Qe3 {[%emt 0:02:57]} Nd7 {[%emt 0:15:34]} 45. Ra1 {[%emt 0:06:21]} Rc7 {[%emt 0:02:09]} 46. Ra2 {[%emt 0:05:00]} Qf7 {[%emt 0:01:20]} 47. Kg2 {[%emt 0:02:16]} Rb7 {[%emt 0:02:28]} 48. Qb3 {[%emt 0:01:47]} Nf8 {[%emt 0:00:13]} 49. Rc2 {[%emt 0:01:24]} Qg6 {[%emt 0:02:02]} 50. Qc4 {[%emt 0:01:36]} d5 {[%emt 0:02:40]} 51. exd5 {[%emt 0:00:34]} exd5 {[%emt 0:00:01]} 52. Qc8 {[%emt 0:01:28]} Re7 {[%emt 0:01:35]} 53. Rc7 {[%emt 0:01:12]} Qe4+ {[%emt 0:00:37]} 54. Kh2 {[%emt 0:00:16]} Qe2+ {[%emt 0:03:47]} 55. Bg2 {[%emt 0:00:18]} Ng6 {[%emt 0:00:10]} 56. Qd8 {[%emt 0:00:54]} d4 {[%emt 0:01:31]} 57. Rxe7+ {[%emt 0:00:54]} Nxe7 {[%emt 0:00:05]} 58. Qxd4 {[%emt 0:00:20]} Qxb5 {[%emt 0:00:41]} 59. Qg4+ {[%emt 0:00:30]} Kf7 {[%emt 0:00:30]} 60. Qe4 {[%emt 0:01:03]} f5 {[%emt 0:02:33]} 61. Qd4 {[%emt 0:00:24]} Ke6 {[%emt 0:01:05]} 62. Qe3+ {[%emt 0:01:06]} Kd7 {[%emt 0:00:07]} 63. Qf4 {[%emt 0:00:16]} Qe2 {[%emt 0:00:59]} 64. Qh6 {[%emt 0:00:52]} Qb5 {[%emt 0:00:31]} 65. Qd2+ {[%emt 0:01:04]} Ke6 {[%emt 0:00:15]} 66. h5 {[%emt 0:00:52]} Nd5 {[%emt 0:00:44]} 67. Bxd5+ {[%emt 0:00:48]} Qxd5 {[%emt 0:00:02]} 68. Qe3+ {[%emt 0:00:08]} Qe4 {[%emt 0:01:05]} 69. Qxb6+ {[%emt 0:00:06]} Kd7 {[%emt 0:01:00]} 70. Qb5+ {[%emt 0:00:19]} Kc8 {[%emt 0:00:13]} 71. Qc5+ {[%emt 0:00:57]} Kd7 {[%emt 0:00:12]} 72. Qf2 {[%emt 0:00:48]} Qd3 {[%emt 0:00:43]} 73. h6 {[%emt 0:00:28]} Ke6 {[%emt 0:00:09]} 74. Qb6+ {[%emt 0:00:43]} Kd7 {[%emt 0:00:07]} 75. Qa7+ {[%emt 0:00:28]} Ke6 {[%emt 0:00:05]} 76. Qb6+ {[%emt 0:00:20]} Kd7 {[%emt 0:00:05]} 77. Kh3 {[%emt 0:00:48]} Qf1+ {[%emt 0:00:51]} 78. Kh2 {[%emt 0:00:31]} Qe2+ {[%emt 0:00:09]} 79. Kg1 {[%emt 0:00:14]} Qe1+ {[%emt 0:00:32]} 80. Kg2 {[%emt 0:00:12]} Qe4+ {[%emt 0:00:14]} 81. Kf2 {[%emt 0:00:35]} Qc2+ {[%emt 0:00:12]} 82. Kg1 {[%emt 0:00:29]} Qd1+ {[%emt 0:00:13]} 83. Kg2 {[%emt 0:00:19]} Qe2+ {[%emt 0:00:59]} 84. Qf2 {[%emt 0:00:23]} Qd3 {[%emt 0:00:02]} 85. Kh2 {[%emt 0:00:45]} Ke6 {[%emt 0:00:13]} 86. Qa2+ {[%emt 0:00:31]} Kd6 {[%emt 0:01:00]} 87. Qb2 {[%emt 0:00:12]} Kc6 {[%emt 0:01:01]} 88. b5+ {[%emt 0:01:14]} Qxb5 {[%emt 0:01:27]} 89. Qf6+ {[%emt 0:00:21]} Kc7 {[%emt 0:00:19]} 90. Qg7+ {[%emt 0:00:41]} Kd6 {[%emt 0:00:14]} 91. Kh3 {[%emt 0:00:35]} Ke6 {[%emt 0:01:34]} 92. Qg8+ {[%emt 0:00:25]} Kf6 {[%emt 0:00:28]} 93. Qh8+ {[%emt 0:00:26]} Ke6 {[%emt 0:00:25]} 94. Qd4 {[%emt 0:00:34]} Qd5 {[%emt 0:00:41]} 95. Qe3+ {[%emt 0:00:23]} Kf6 {[%emt 0:00:08]} 96. Qc3+ {[%emt 0:00:19]} Kg6 {[%emt 0:00:49]} 97. Qg7+ {[%emt 0:00:16]} Kh5 {[%emt 0:00:02]} 98. g4+ {[%emt 0:00:28]} fxg4+ {[%emt 0:00:04]} 99. Qxg4+ {[%emt 0:00:03]} Kxh6 {[%emt 0:00:05]} 100. Qf4+ {[%emt 0:00:10]} Kg6 {[%emt 0:00:13]} 101. Qg4+ {[%emt 0:00:05]} Kf7 {[%emt 0:00:09]} 102. Qf4+ {[%emt 0:00:05]} 1/2-1/2

[Event "VII Totalizator Sportowy 2022"]
[Site "Bydgoszcz"]
[Date "2022.06.27"]
[Round "3.19"]
[White "Paprocki, Jaroslaw"]
[Black "Kowalski, Igor"]
[Result "1/2-1/2"]
[ECO "A01"]
[WhiteElo "2165"]
[BlackElo "2370"]
[Annotator "TA"]
[PlyCount "79"]
[EventDate "2022.06.25"]
[EventType "swiss"]
[EventCountry "POL"]
[SourceTitle "playchess.com"]
[Source "ChessBase"]
[SourceQuality "1"]
[TimeControl "40/5400+30:1800+30"]

{[%evp 18,79,-8,-11,0,-2,0,-13,-22,-11,-7,-15,-6,-4,-4,-16,-12,-19,-17,-31,-12,-17,-17,-14,-14,-16,-8,-12,0,0,0,0,13,9,7,0,0,-94,-44,-45,-37,-80,0,0,0,0,0,0,0,0,0,0,0,0,0,0,0,0,0,0,0,0,0,0]} 1. b3 {[%emt 0:00:09]} d5 {[%emt 0:00:35]} 2. Bb2 {[%emt 0:00:23]} Bf5 {[%emt 0:00:10]} 3. g3 {[%emt 0:03:43]} e6 {[%emt 0:00:25]} 4. Bg2 {[%emt 0:00:16]} Nf6 {[%emt 0:00:17]} 5. c4 {[%emt 0:02:19]} c6 {[%emt 0:00:08]} 6. Nf3 {[%emt 0:02:37]} h6 {[%emt 0:00:17]} 7. O-O {[%emt 0:00:18]} Be7 {[%emt 0:02:08]} 8. d3 {[%emt 0:02:53]} O-O {[%emt 0:00:07]} 9. Nbd2 {[%emt 0:02:22][%cal Bb1d2,Bd2f3,Bf3d4][%mdl 32]} Nbd7 {[%emt 0:00:31] 9...a5 is the hot move.} 10. Ne5 {[%emt 0:00:50]} Bh7 {[%emt 0:04:32] A12: English Opening: 1...c6 with b3 by White.} 11. Nxd7 {[%emt 0:07:15]} Nxd7 {[%emt 0:00:24] [#]} 12. cxd5 $146 {[%emt 0:00:41]} ({Predecessor:} 12. a3 a5 13. Ra2 Bf6 14. Qa1 Bxb2 15. Qxb2 h5 16. b4 a4 17. Rc1 f5 18. cxd5 cxd5 {1-0 (44) Jain,K (1870)-Bagwe,G (1788) Delhi 2019}) 12... exd5 {[%emt 0:00:25]} 13. Qc2 {[%emt 0:05:50]} Bf6 {[%emt 0:01:35]} 14. Nf3 {[%emt 0:02:59]} Re8 {[%emt 0:00:31]} 15. Rfe1 {[%emt 0:01:28]} a5 {[%emt 0:01:07]} 16. Bh3 {[%emt 0:01:57]} Ne5 {[%emt 0:07:35]} 17. Nd4 {[%emt 0:07:09]} Qb6 {[%emt 0:02:01][%cal Oe5d3]} 18. Bf5 {[%emt 0:09:24]} (18. Nf5 {is interesting.} h5 19. Rab1 Bg6 20. Bc3) 18... c5 {[%emt 0:07:17]} 19. Bxh7+ {[%emt 0:01:22]} Kxh7 {[%emt 0:00:04]} 20. Nf3 {[%emt 0:03:39]} Nxf3+ {[%emt 0:03:40]} 21. exf3 {[%emt 0:00:05]} Bxb2 {[%emt 0:00:13]} 22. Qxb2 {[%emt 0:02:34]} d4 {[%emt 0:04:04]} 23. Re2 {[%emt 0:04:11]} Qc6 {[%emt 0:04:48]} 24. Rae1 {[%emt 0:02:02]} Rxe2 {[%emt 0:00:47]} 25. Qxe2 $11 {[%emt 0:00:06][%mdl 4096] Endgame KQR-KQR} a4 {[%emt 0:00:06]} 26. bxa4 {[%emt 0:01:26]} Rxa4 {[%emt 0:00:46]} 27. Rc1 {[%emt 0:03:41]} (27. Kg2 $11) 27... b6 {[%emt 0:04:16]} (27... Ra3 $17) 28. Rb1 {[%emt 0:05:07]} b5 {[%emt 0:16:21] And now ...c4 would win.} 29. Qe5 {[%emt 0:11:00]} c4 {[%emt 0:20:31]} ({Of course not} 29... Rxa2 $6 30. Qf5+ Qg6 31. Qxg6+ Kxg6 32. Rxb5 $11) ({Black should play} 29... f6 $17 30. Qf5+ Kh8) 30. dxc4 {[%emt 0:03:31] The position is equal.} bxc4 {[%emt 0:02:49]} 31. Qxd4 {[%emt 0:01:07]} Qxf3 {[%emt 0:01:21]} 32. Rc1 {[%emt 0:02:14]} Rxa2 {[%emt 0:01:41][%cal Oc4c3] [#] ...c3! is the strong threat.} 33. Rxc4 {[%emt 0:00:29]} Re2 {[%emt 0:00:10][%cal Re2e1]} 34. Rc1 {[%emt 0:00:51] Inhibits Re1+.} h5 {[%emt 0:00:12]} 35. h4 {[%emt 0:02:41]} f5 {[%emt 0:00:58]} 36. Qc5 {[%emt 0:02:09]} Rd2 {[%emt 0:04:17]} 37. Qe3 {[%emt 0:01:43]} Qxe3 {[%emt 0:00:30]} 38. fxe3 {[%emt 0:00:04]} Kg6 {[%emt 0:00:08]} 39. Rc6+ {[%emt 0:01:05]} Kf7 {[%emt 0:00:05]} 40. Kf1 {Weighted Error Value: White=0.09 (flawless) /Black=0.09 (flawless)} 1/2-1/2